[Event "Titled Tuesday Blitz November 15 Early 2022"]
[White "Antonova, Nadezhda"]
[Black "Vargas, Mauricio"]
[WhiteFideId "14700182"]
[BlackFideId "4404572"]
[WhiteElo "1813"]
[BlackElo "2025"]
[Result "0-1"]
[Round "05"]
[TimeControl "180+1"]
[Date "2022.11.16"]
[WhiteClock "0:00:03"]
[BlackClock "0:00:41"]

1. Nf3 {[%clk 0:03:00]}  Nc6 {[%clk 0:02:56]} 2. b3 {[%clk 0:02:57]}  e5 {[%clk 0:02:54]} 3. Bb2 {[%clk 0:02:56]}  d6 {[%clk 0:02:53]} 4. g3 {[%clk 0:02:56]}  f5 {[%clk 0:02:53]} 5. Bg2 {[%clk 0:02:56]}  Nf6 {[%clk 0:02:53]} 6. d3 {[%clk 0:02:55]}  g6 {[%clk 0:02:52]} 7. O-O {[%clk 0:02:55]}  Bg7 {[%clk 0:02:52]} 8. c4 {[%clk 0:02:53]}  O-O {[%clk 0:02:50]} 9. Nc3 {[%clk 0:02:51]}  Nd4 {[%clk 0:02:45]} 10. e3 {[%clk 0:02:49]}  Ne6 {[%clk 0:02:41]} 11. d4 {[%clk 0:02:48]}  e4 {[%clk 0:02:41]} 12. Nd2 {[%clk 0:02:46]}  c6 {[%clk 0:02:39]} 13. Qc2 {[%clk 0:02:38]}  Qe8 {[%clk 0:02:37]} 14. b4 {[%clk 0:02:30]}  g5 {[%clk 0:02:36]} 15. d5 {[%clk 0:02:28]}  Nd8 {[%clk 0:02:28]} 16. Nb3 {[%clk 0:02:24]}  Nf7 {[%clk 0:02:25]} 17. Nd4 {[%clk 0:02:22]}  Bd7 {[%clk 0:02:22]} 18. Rad1 {[%clk 0:02:09]}  g4 {[%clk 0:02:22]} 19. h4 {[%clk 0:01:58]}  Rd8 {[%clk 0:02:02]} 20. dxc6 {[%clk 0:01:50]}  bxc6 {[%clk 0:02:01]} 21. b5 {[%clk 0:01:47]}  c5 {[%clk 0:02:00]} 22. Nde2 {[%clk 0:01:46]}  Be6 {[%clk 0:01:58]} 23. Nd5 {[%clk 0:01:43]}  Ne5 {[%clk 0:01:52]} 24. Nxf6+ {[%clk 0:01:36]}  Bxf6 {[%clk 0:01:51]} 25. Nf4 {[%clk 0:01:35]}  Nf3+ {[%clk 0:01:47]} 26. Bxf3 {[%clk 0:01:35]}  gxf3 {[%clk 0:01:47]} 27. Bxf6 {[%clk 0:01:32]}  Rxf6 {[%clk 0:01:46]} 28. Qc3 {[%clk 0:01:18]}  Qf8 {[%clk 0:01:44]} 29. a4 {[%clk 0:01:10]}  Bc8 {[%clk 0:01:32]} 30. a5 {[%clk 0:00:35]}  Kf7 {[%clk 0:01:19]} 31. Rd2 {[%clk 0:00:32]}  Qh6 {[%clk 0:01:16]} 32. Rfd1 {[%clk 0:00:32]}  Rg6 {[%clk 0:01:10]} 33. Nxg6 {[%clk 0:00:27]}  Qxg6 {[%clk 0:01:09]} 34. Kh2 {[%clk 0:00:25]}  Ke7 {[%clk 0:01:06]} 35. a6 {[%clk 0:00:19]}  Qg4 {[%clk 0:01:05]} 36. Rd5 {[%clk 0:00:18]}  f4 {[%clk 0:01:00]} 37. Re5+ {[%clk 0:00:08]}  dxe5 {[%clk 0:00:54]} 38. Qxe5+ {[%clk 0:00:07]}  Be6 {[%clk 0:00:53]} 39. Qc7+ {[%clk 0:00:03]}  Rd7 {[%clk 0:00:49]} 40. Qxc5+ {[%clk 0:00:03]}  Kf7 {[%clk 0:00:41]} 0-1


[Site "https://www.chess.com"]

[Event "Titled Tuesday Blitz November 15 Early 2022"]
[White "Atakishiyev, Elmar"]
[Black "Ezat, Mohamed"]
[WhiteFideId "13410547"]
[BlackFideId "10600906"]
[WhiteElo "2194"]
[BlackElo "2386"]
[Result "1-0"]
[Round "05"]
[TimeControl "180+1"]
[Date "2022.11.16"]
[WhiteClock "0:00:12"]
[BlackClock "0:00:09"]

1. d4 {[%clk 0:02:55]}  Nf6 {[%clk 0:02:23]} 2. c4 {[%clk 0:02:54]}  g6 {[%clk 0:02:20]} 3. Nc3 {[%clk 0:02:54]}  Bg7 {[%clk 0:02:20]} 4. Bg5 {[%clk 0:02:53]}  h6 {[%clk 0:02:15]} 5. Bd2 {[%clk 0:02:34]}  c5 {[%clk 0:02:11]} 6. dxc5 {[%clk 0:02:23]}  Na6 {[%clk 0:02:10]} 7. Nf3 {[%clk 0:02:10]}  Nxc5 {[%clk 0:02:08]} 8. Rc1 {[%clk 0:02:10]}  d6 {[%clk 0:02:07]} 9. e3 {[%clk 0:02:05]}  Nfe4 {[%clk 0:02:04]} 10. Be2 {[%clk 0:02:01]}  Nxd2 {[%clk 0:01:55]} 11. Qxd2 {[%clk 0:02:01]}  O-O {[%clk 0:01:53]} 12. O-O {[%clk 0:02:00]}  Bf5 {[%clk 0:01:53]} 13. b4 {[%clk 0:01:46]}  Ne4 {[%clk 0:01:52]} 14. Nxe4 {[%clk 0:01:46]}  Bxe4 {[%clk 0:01:52]} 15. Nd4 {[%clk 0:01:37]}  a5 {[%clk 0:01:50]} 16. a3 {[%clk 0:01:27]}  axb4 {[%clk 0:01:48]} 17. axb4 {[%clk 0:01:28]}  Qb6 {[%clk 0:01:37]} 18. Bf3 {[%clk 0:01:24]}  Bxf3 {[%clk 0:01:30]} 19. Nxf3 {[%clk 0:01:25]}  Ra4 {[%clk 0:01:27]} 20. c5 {[%clk 0:00:34]}  dxc5 {[%clk 0:01:08]} 21. bxc5 {[%clk 0:00:33]}  Qc7 {[%clk 0:01:03]} 22. Qc2 {[%clk 0:00:32]}  Ra6 {[%clk 0:00:56]} 23. Rfd1 {[%clk 0:00:30]}  Rc8 {[%clk 0:00:50]} 24. h3 {[%clk 0:00:26]}  Rc6 {[%clk 0:00:43]} 25. Qe4 {[%clk 0:00:25]}  Bb2 {[%clk 0:00:23]} 26. Rc2 {[%clk 0:00:24]}  Ba3 {[%clk 0:00:22]} 27. Nd4 {[%clk 0:00:16]}  Rxc5 {[%clk 0:00:22]} 28. Nb5 {[%clk 0:00:17]}  Qc6 {[%clk 0:00:18]} 29. Qxc6 {[%clk 0:00:13]}  R8xc6 {[%clk 0:00:18]} 30. Nxa3 {[%clk 0:00:13]}  Rxc2 {[%clk 0:00:17]} 31. Nxc2 {[%clk 0:00:14]}  Rxc2 {[%clk 0:00:18]} 32. Rd7 {[%clk 0:00:15]}  b5 {[%clk 0:00:16]} 33. Rxe7 {[%clk 0:00:15]}  b4 {[%clk 0:00:13]} 34. Rb7 {[%clk 0:00:15]}  Rb2 {[%clk 0:00:14]} 35. g4 {[%clk 0:00:15]}  g5 {[%clk 0:00:13]} 36. Rb6 {[%clk 0:00:13]}  Kg7 {[%clk 0:00:13]} 37. Kg2 {[%clk 0:00:14]}  b3 {[%clk 0:00:13]} 38. Kg3 {[%clk 0:00:14]}  f6 {[%clk 0:00:13]} 39. f3 {[%clk 0:00:12]}  Kf7 {[%clk 0:00:10]} 40. f4 {[%clk 0:00:11]}  gxf4+ {[%clk 0:00:09]} 41. exf4 {[%clk 0:00:09]}  Rb1 {[%clk 0:00:09]} 42. f5 {[%clk 0:00:08]}  Ke7 {[%clk 0:00:08]} 43. Kh4 {[%clk 0:00:08]}  Kf7 {[%clk 0:00:06]} 44. Rb7+ {[%clk 0:00:07]}  Ke8 {[%clk 0:00:05]} 45. Kh5 {[%clk 0:00:07]}  b2 {[%clk 0:00:05]} 46. Kxh6 {[%clk 0:00:07]}  Rh1 {[%clk 0:00:05]} 47. Rxb2 {[%clk 0:00:07]}  Rxh3+ {[%clk 0:00:05]} 48. Kg6 {[%clk 0:00:07]}  Ke7 {[%clk 0:00:04]} 49. Rb7+ {[%clk 0:00:07]}  Kd6 {[%clk 0:00:05]} 50. Kxf6 {[%clk 0:00:07]}  Rh7 {[%clk 0:00:05]} 51. Rxh7 {[%clk 0:00:07]}  Kd5 {[%clk 0:00:04]} 52. Rd7+ {[%clk 0:00:07]}  Ke4 {[%clk 0:00:05]} 53. Ke6 {[%clk 0:00:08]}  Kf4 {[%clk 0:00:06]} 54. f6 {[%clk 0:00:09]}  Kg5 {[%clk 0:00:06]} 55. f7 {[%clk 0:00:10]}  Kh4 {[%clk 0:00:07]} 56. f8=Q {[%clk 0:00:10]}  Kg5 {[%clk 0:00:07]} 57. Qf5+ {[%clk 0:00:11]}  Kh4 {[%clk 0:00:08]} 58. Qh5+ {[%clk 0:00:11]}  Kg3 {[%clk 0:00:08]} 59. Rd3+ {[%clk 0:00:12]}  Kf4 {[%clk 0:00:09]} 60. Qf5# {[%clk 0:00:12]} 1-0


[Site "https://www.chess.com"]

[Event "Titled Tuesday Blitz November 15 Early 2022"]
[White "Bilan, Danila"]
[Black "Onslow, Alfie"]
[WhiteFideId "24161918"]
[BlackFideId "436976"]
[WhiteElo "2173"]
[BlackElo "2015"]
[Result "0-1"]
[Round "05"]
[TimeControl "180+1"]
[Date "2022.11.16"]
[WhiteClock "0:00:02"]
[BlackClock "0:00:24"]

1. d4 {[%clk 0:02:59]}  d5 {[%clk 0:02:57]} 2. Nf3 {[%clk 0:02:59]}  Bf5 {[%clk 0:02:56]} 3. c4 {[%clk 0:02:59]}  e6 {[%clk 0:02:56]} 4. Qb3 {[%clk 0:02:55]}  Nc6 {[%clk 0:02:55]} 5. a3 {[%clk 0:02:22]}  Na5 {[%clk 0:02:53]} 6. Qa4+ {[%clk 0:02:17]}  c6 {[%clk 0:02:53]} 7. c5 {[%clk 0:02:10]}  b5 {[%clk 0:02:38]} 8. Qd1 {[%clk 0:01:26]}  Nf6 {[%clk 0:02:32]} 9. Bf4 {[%clk 0:01:13]}  Be7 {[%clk 0:02:29]} 10. h3 {[%clk 0:01:11]}  O-O {[%clk 0:02:23]} 11. e3 {[%clk 0:01:11]}  h6 {[%clk 0:02:17]} 12. Ne5 {[%clk 0:01:01]}  Nd7 {[%clk 0:02:12]} 13. Bd3 {[%clk 0:00:35]}  Nxe5 {[%clk 0:01:57]} 14. Bxe5 {[%clk 0:00:30]}  Bxd3 {[%clk 0:01:56]} 15. Qxd3 {[%clk 0:00:30]}  Nc4 {[%clk 0:01:56]} 16. b4 {[%clk 0:00:21]}  f6 {[%clk 0:01:51]} 17. Bg3 {[%clk 0:00:20]}  e5 {[%clk 0:01:52]} 18. O-O {[%clk 0:00:14]}  e4 {[%clk 0:01:52]} 19. Qe2 {[%clk 0:00:11]}  a5 {[%clk 0:01:52]} 20. Nd2 {[%clk 0:00:10]}  Nxd2 {[%clk 0:01:45]} 21. Qxd2 {[%clk 0:00:10]}  a4 {[%clk 0:01:45]} 22. Qe2 {[%clk 0:00:08]}  f5 {[%clk 0:01:45]} 23. Be5 {[%clk 0:00:07]}  Qe8 {[%clk 0:01:45]} 24. f4 {[%clk 0:00:04]}  exf3 {[%clk 0:01:38]} 25. Rxf3 {[%clk 0:00:03]}  Bg5 {[%clk 0:01:38]} 26. Raf1 {[%clk 0:00:02]}  g6 {[%clk 0:01:37]} 27. Rg3 {[%clk 0:00:02]}  Qe6 {[%clk 0:01:34]} 28. Kh2 {[%clk 0:00:02]}  Kh7 {[%clk 0:01:32]} 29. Bf4 {[%clk 0:00:02]}  Bxf4 {[%clk 0:01:29]} 30. Rxf4 {[%clk 0:00:03]}  g5 {[%clk 0:01:30]} 31. Rf1 {[%clk 0:00:03]}  Rae8 {[%clk 0:01:27]} 32. Rgf3 {[%clk 0:00:03]}  Qe4 {[%clk 0:01:27]} 33. Qf2 {[%clk 0:00:03]}  Kg6 {[%clk 0:01:15]} 34. Kg1 {[%clk 0:00:03]}  h5 {[%clk 0:01:05]} 35. Kh2 {[%clk 0:00:02]}  Rf7 {[%clk 0:01:05]} 36. Kg1 {[%clk 0:00:03]}  Ref8 {[%clk 0:01:04]} 37. Qg3 {[%clk 0:00:03]}  h4 {[%clk 0:01:01]} 38. Qd6+ {[%clk 0:00:03]}  Rf6 {[%clk 0:01:02]} 39. Qh2 {[%clk 0:00:03]}  f4 {[%clk 0:00:58]} 40. Kh1 {[%clk 0:00:02]}  fxe3 {[%clk 0:00:56]} 41. Rxf6+ {[%clk 0:00:02]}  Rxf6 {[%clk 0:00:57]} 42. Rxf6+ {[%clk 0:00:02]}  Kxf6 {[%clk 0:00:57]} 43. Qd6+ {[%clk 0:00:03]}  Kg7 {[%clk 0:00:51]} 44. Qd7+ {[%clk 0:00:03]}  Kg6 {[%clk 0:00:51]} 45. Qxc6+ {[%clk 0:00:03]}  Kh5 {[%clk 0:00:50]} 46. Qc8 {[%clk 0:00:01]}  Qe7 {[%clk 0:00:26]} 47. Qh8+ {[%clk 0:00:02]}  Kg6 {[%clk 0:00:26]} 48. Qg8+ {[%clk 0:00:02]}  Kf5 {[%clk 0:00:27]} 49. Qh7+ {[%clk 0:00:02]}  Qxh7 {[%clk 0:00:24]} 0-1


[Site "https://www.chess.com"]

[Event "Titled Tuesday Blitz November 15 Early 2022"]
[White "Bluebaum, Matthias"]
[Black "Martinez Alcantara, Jose Eduardo"]
[WhiteFideId "24651516"]
[BlackFideId "3805662"]
[WhiteElo "2633"]
[BlackElo "2705"]
[Result "0-1"]
[Round "05"]
[TimeControl "180+1"]
[Date "2022.11.15"]
[WhiteClock "0:00:01"]
[BlackClock "0:00:19"]

1. d4 {[%clk 0:03:00]}  Nf6 {[%clk 0:02:59]} 2. c4 {[%clk 0:03:01]}  e6 {[%clk 0:03:00]} 3. Nc3 {[%clk 0:03:01]}  Bb4 {[%clk 0:03:00]} 4. e3 {[%clk 0:03:01]}  O-O {[%clk 0:03:00]} 5. Bd2 {[%clk 0:03:02]}  d5 {[%clk 0:03:00]} 6. Nf3 {[%clk 0:03:02]}  Re8 {[%clk 0:02:58]} 7. Rc1 {[%clk 0:03:01]}  a6 {[%clk 0:02:53]} 8. c5 {[%clk 0:03:01]}  c6 {[%clk 0:02:37]} 9. a3 {[%clk 0:02:45]}  Ba5 {[%clk 0:02:37]} 10. Ne5 {[%clk 0:02:42]}  Nfd7 {[%clk 0:02:27]} 11. Nxd7 {[%clk 0:02:05]}  Nxd7 {[%clk 0:02:27]} 12. b4 {[%clk 0:02:06]}  Bc7 {[%clk 0:02:27]} 13. f4 {[%clk 0:02:06]}  f6 {[%clk 0:02:15]} 14. Bd3 {[%clk 0:01:41]}  e5 {[%clk 0:02:13]} 15. O-O {[%clk 0:01:38]}  e4 {[%clk 0:01:58]} 16. Be2 {[%clk 0:01:38]}  f5 {[%clk 0:01:58]} 17. a4 {[%clk 0:01:29]}  Nf6 {[%clk 0:01:57]} 18. b5 {[%clk 0:01:30]}  axb5 {[%clk 0:01:57]} 19. axb5 {[%clk 0:01:31]}  Be6 {[%clk 0:01:43]} 20. b6 {[%clk 0:01:31]}  Bb8 {[%clk 0:01:44]} 21. Ra1 {[%clk 0:01:31]}  Rxa1 {[%clk 0:01:44]} 22. Qxa1 {[%clk 0:01:32]}  h6 {[%clk 0:01:41]} 23. Be1 {[%clk 0:01:21]}  Kh7 {[%clk 0:01:37]} 24. Bg3 {[%clk 0:01:18]}  Bf7 {[%clk 0:01:36]} 25. Qd1 {[%clk 0:01:11]}  Nd7 {[%clk 0:01:30]} 26. h3 {[%clk 0:01:08]}  Nf8 {[%clk 0:01:31]} 27. Bh2 {[%clk 0:01:07]}  g6 {[%clk 0:01:29]} 28. g4 {[%clk 0:01:03]}  Ne6 {[%clk 0:01:30]} 29. Kh1 {[%clk 0:01:02]}  Qe7 {[%clk 0:01:27]} 30. Na4 {[%clk 0:00:56]}  Ng7 {[%clk 0:01:13]} 31. Rg1 {[%clk 0:00:54]}  Rf8 {[%clk 0:01:13]} 32. Qe1 {[%clk 0:00:50]}  g5 {[%clk 0:01:12]} 33. fxg5 {[%clk 0:00:45]}  Bxh2 {[%clk 0:01:10]} 34. Kxh2 {[%clk 0:00:41]}  hxg5 {[%clk 0:01:07]} 35. gxf5 {[%clk 0:00:40]}  Nxf5 {[%clk 0:01:08]} 36. Bg4 {[%clk 0:00:40]}  Nh4 {[%clk 0:00:56]} 37. Rf1 {[%clk 0:00:38]}  Be6 {[%clk 0:00:50]} 38. Bxe6 {[%clk 0:00:09]}  Rxf1 {[%clk 0:00:50]} 39. Qxf1 {[%clk 0:00:06]}  Nf3+ {[%clk 0:00:49]} 40. Kh1 {[%clk 0:00:07]}  Qxe6 {[%clk 0:00:50]} 41. Qg2 {[%clk 0:00:08]}  Kh6 {[%clk 0:00:29]} 42. Qg3 {[%clk 0:00:08]}  Qc8 {[%clk 0:00:24]} 43. Nc3 {[%clk 0:00:08]}  Qa8 {[%clk 0:00:24]} 44. Ne2 {[%clk 0:00:07]}  Qa1+ {[%clk 0:00:21]} 45. Kg2 {[%clk 0:00:08]}  Qb2 {[%clk 0:00:18]} 46. Kf2 {[%clk 0:00:07]}  Qd2 {[%clk 0:00:18]} 47. Kf1 {[%clk 0:00:02]}  Qd1+ {[%clk 0:00:17]} 48. Kf2 {[%clk 0:00:02]}  Qe1+ {[%clk 0:00:18]} 49. Kg2 {[%clk 0:00:02]}  Qxe2+ {[%clk 0:00:18]} 50. Kh1 {[%clk 0:00:02]}  Qf1+ {[%clk 0:00:18]} 51. Qg1 {[%clk 0:00:01]}  Qxg1# {[%clk 0:00:19]} 0-1


[Site "https://www.chess.com"]

[Event "Titled Tuesday Blitz November 15 Early 2022"]
[White "Boruchovsky, Avital"]
[Black "Aaditya Dhingra"]
[WhiteFideId "2800055"]
[BlackFideId "25678191"]
[WhiteElo "2458"]
[BlackElo "2054"]
[Result "0-1"]
[Round "05"]
[TimeControl "180+1"]
[Date "2022.11.16"]
[WhiteClock "0:00:10"]
[BlackClock "0:00:03"]

1. g3 {[%clk 0:03:00]}  c5 {[%clk 0:02:58]} 2. Bg2 {[%clk 0:03:01]}  Nc6 {[%clk 0:02:58]} 3. c4 {[%clk 0:03:01]}  g6 {[%clk 0:02:58]} 4. e3 {[%clk 0:03:01]}  Bg7 {[%clk 0:02:59]} 5. Ne2 {[%clk 0:03:01]}  e6 {[%clk 0:02:58]} 6. O-O {[%clk 0:03:01]}  Nge7 {[%clk 0:02:58]} 7. d4 {[%clk 0:03:01]}  cxd4 {[%clk 0:02:55]} 8. Nxd4 {[%clk 0:02:59]}  Nxd4 {[%clk 0:02:54]} 9. exd4 {[%clk 0:02:59]}  d5 {[%clk 0:02:54]} 10. c5 {[%clk 0:02:55]}  b6 {[%clk 0:02:46]} 11. Nc3 {[%clk 0:02:47]}  O-O {[%clk 0:02:43]} 12. Bg5 {[%clk 0:02:34]}  h6 {[%clk 0:02:32]} 13. Be3 {[%clk 0:02:21]}  Nf5 {[%clk 0:02:28]} 14. Qd3 {[%clk 0:02:00]}  a5 {[%clk 0:02:12]} 15. Rfd1 {[%clk 0:01:44]}  Ba6 {[%clk 0:02:10]} 16. Qd2 {[%clk 0:01:37]}  bxc5 {[%clk 0:02:08]} 17. dxc5 {[%clk 0:01:38]}  d4 {[%clk 0:02:01]} 18. Qe1 {[%clk 0:01:11]}  Qc8 {[%clk 0:01:40]} 19. Na4 {[%clk 0:01:03]}  dxe3 {[%clk 0:01:33]} 20. Nb6 {[%clk 0:01:02]}  Qxc5 {[%clk 0:01:26]} 21. Nxa8 {[%clk 0:01:00]}  Bxb2 {[%clk 0:01:20]} 22. g4 {[%clk 0:00:54]}  exf2+ {[%clk 0:00:53]} 23. Qxf2 {[%clk 0:00:53]}  Bd4 {[%clk 0:00:46]} 24. Rxd4 {[%clk 0:00:53]}  Nxd4 {[%clk 0:00:47]} 25. Kh1 {[%clk 0:00:50]}  e5 {[%clk 0:00:43]} 26. Re1 {[%clk 0:00:45]}  Bc4 {[%clk 0:00:39]} 27. Rc1 {[%clk 0:00:41]}  Qb4 {[%clk 0:00:15]} 28. Nc7 {[%clk 0:00:34]}  Ne2 {[%clk 0:00:14]} 29. Re1 {[%clk 0:00:29]}  Nf4 {[%clk 0:00:13]} 30. Bf3 {[%clk 0:00:27]}  Qd6 {[%clk 0:00:12]} 31. Qa7 {[%clk 0:00:21]}  Rc8 {[%clk 0:00:11]} 32. Qxa5 {[%clk 0:00:14]}  Rxc7 {[%clk 0:00:10]} 33. Rxe5 {[%clk 0:00:13]}  Be6 {[%clk 0:00:08]} 34. Re1 {[%clk 0:00:12]}  Rc2 {[%clk 0:00:06]} 35. Qa8+ {[%clk 0:00:12]}  Kh7 {[%clk 0:00:05]} 36. Qe4 {[%clk 0:00:11]}  Qd2 {[%clk 0:00:05]} 37. Re2 {[%clk 0:00:09]}  Nxe2 {[%clk 0:00:03]} 38. Qxe6 {[%clk 0:00:09]}  fxe6 {[%clk 0:00:02]} 39. Be4 {[%clk 0:00:09]}  Qe1+ {[%clk 0:00:02]} 40. Kg2 {[%clk 0:00:09]}  Nf4+ {[%clk 0:00:02]} 41. Kf3 {[%clk 0:00:10]}  Qf1+ {[%clk 0:00:03]} 42. Ke3 {[%clk 0:00:10]}  Qf2# {[%clk 0:00:03]} 0-1


[Site "https://www.chess.com"]

[Event "Titled Tuesday Blitz November 15 Early 2022"]
[White "Cheparinov, Ivan"]
[Black "Pranav, V"]
[WhiteFideId "2905540"]
[BlackFideId "25060783"]
[WhiteElo "2622"]
[BlackElo "2430"]
[Result "0-1"]
[Round "05"]
[TimeControl "180+1"]
[Date "2022.11.15"]
[WhiteClock "0:00:13"]
[BlackClock "0:01:19"]

1. e4 {[%clk 0:03:00]}  e5 {[%clk 0:02:57]} 2. Nf3 {[%clk 0:02:58]}  Nc6 {[%clk 0:02:57]} 3. Bb5 {[%clk 0:02:59]}  a6 {[%clk 0:02:57]} 4. Ba4 {[%clk 0:02:58]}  d6 {[%clk 0:02:57]} 5. O-O {[%clk 0:02:53]}  Bd7 {[%clk 0:02:57]} 6. c4 {[%clk 0:02:41]}  g5 {[%clk 0:02:51]} 7. Nc3 {[%clk 0:02:13]}  g4 {[%clk 0:02:50]} 8. Ne1 {[%clk 0:02:13]}  h5 {[%clk 0:02:49]} 9. Nc2 {[%clk 0:02:12]}  Bg7 {[%clk 0:02:48]} 10. d3 {[%clk 0:02:07]}  Nge7 {[%clk 0:02:42]} 11. f4 {[%clk 0:02:05]}  exf4 {[%clk 0:02:33]} 12. Bxf4 {[%clk 0:02:06]}  Ng6 {[%clk 0:02:33]} 13. Be3 {[%clk 0:02:02]}  O-O {[%clk 0:02:31]} 14. d4 {[%clk 0:01:59]}  f5 {[%clk 0:02:28]} 15. exf5 {[%clk 0:01:42]}  Bxf5 {[%clk 0:02:26]} 16. Bb3 {[%clk 0:01:34]}  Na5 {[%clk 0:02:18]} 17. d5 {[%clk 0:01:28]}  Qe7 {[%clk 0:02:09]} 18. Re1 {[%clk 0:01:17]}  Qh4 {[%clk 0:02:02]} 19. Qd2 {[%clk 0:01:08]}  g3 {[%clk 0:01:51]} 20. hxg3 {[%clk 0:01:02]}  Qxg3 {[%clk 0:01:52]} 21. Bf2 {[%clk 0:00:57]}  Qf4 {[%clk 0:01:48]} 22. Be3 {[%clk 0:00:52]}  Qg4 {[%clk 0:01:47]} 23. Nd4 {[%clk 0:00:49]}  Nxb3 {[%clk 0:01:43]} 24. axb3 {[%clk 0:00:49]}  Nh4 {[%clk 0:01:42]} 25. Rf1 {[%clk 0:00:43]}  Rae8 {[%clk 0:01:40]} 26. Rf4 {[%clk 0:00:39]}  Qg3 {[%clk 0:01:35]} 27. Nxf5 {[%clk 0:00:24]}  Rxf5 {[%clk 0:01:31]} 28. Rxf5 {[%clk 0:00:21]}  Nxf5 {[%clk 0:01:32]} 29. Bf2 {[%clk 0:00:19]}  Qg4 {[%clk 0:01:25]} 30. Re1 {[%clk 0:00:20]}  Be5 {[%clk 0:01:24]} 31. Qd1 {[%clk 0:00:18]}  Qg6 {[%clk 0:01:24]} 32. Qf3 {[%clk 0:00:18]}  Rf8 {[%clk 0:01:22]} 33. Qh3 {[%clk 0:00:18]}  Nh6 {[%clk 0:01:20]} 34. Ne4 {[%clk 0:00:16]}  Ng4 {[%clk 0:01:20]} 35. Bg3 {[%clk 0:00:15]}  Bd4+ {[%clk 0:01:19]} 36. Kh1 {[%clk 0:00:15]}  Qxe4 {[%clk 0:01:19]} 37. Qxh5 {[%clk 0:00:13]}  Qxe1+ {[%clk 0:01:19]} 0-1


[Site "https://www.chess.com"]

[Event "Titled Tuesday Blitz November 15 Early 2022"]
[White "Ciuffoletti, Paolo"]
[Black "Santos Flores, Alberto"]
[WhiteFideId "807630"]
[BlackFideId "3601234"]
[WhiteElo "2143"]
[BlackElo "2235"]
[Result "1-0"]
[Round "05"]
[TimeControl "180+1"]
[Date "2022.11.16"]
[WhiteClock "0:00:34"]
[BlackClock "0:00:02"]

1. e4 {[%clk 0:03:00]}  c5 {[%clk 0:03:00]} 2. d4 {[%clk 0:03:00]}  cxd4 {[%clk 0:02:59]} 3. c3 {[%clk 0:03:00]}  g6 {[%clk 0:02:59]} 4. Nf3 {[%clk 0:03:00]}  Bg7 {[%clk 0:02:59]} 5. Bc4 {[%clk 0:03:00]}  d3 {[%clk 0:02:59]} 6. Qb3 {[%clk 0:02:49]}  e6 {[%clk 0:02:51]} 7. Bf4 {[%clk 0:02:41]}  Nc6 {[%clk 0:02:50]} 8. Bxd3 {[%clk 0:02:39]}  Nge7 {[%clk 0:02:47]} 9. Bd6 {[%clk 0:02:35]}  O-O {[%clk 0:02:42]} 10. O-O {[%clk 0:02:34]}  Re8 {[%clk 0:02:23]} 11. Nbd2 {[%clk 0:02:23]}  a6 {[%clk 0:02:12]} 12. a4 {[%clk 0:02:22]}  f5 {[%clk 0:01:49]} 13. e5 {[%clk 0:02:15]}  Nd5 {[%clk 0:01:40]} 14. Rfe1 {[%clk 0:02:08]}  g5 {[%clk 0:01:35]} 15. Bxf5 {[%clk 0:01:58]}  Nce7 {[%clk 0:01:34]} 16. Be4 {[%clk 0:01:43]}  h6 {[%clk 0:01:15]} 17. h4 {[%clk 0:01:26]}  g4 {[%clk 0:01:14]} 18. Nh2 {[%clk 0:01:23]}  h5 {[%clk 0:01:10]} 19. Nhf1 {[%clk 0:01:23]}  Nf4 {[%clk 0:01:05]} 20. Qc4 {[%clk 0:01:16]}  Ned5 {[%clk 0:00:59]} 21. Ng3 {[%clk 0:01:09]}  Qxh4 {[%clk 0:00:56]} 22. Nf5 {[%clk 0:01:04]}  exf5 {[%clk 0:00:50]} 23. Bxd5+ {[%clk 0:01:03]}  Nxd5 {[%clk 0:00:50]} 24. Qxd5+ {[%clk 0:01:03]}  Re6 {[%clk 0:00:44]} 25. Nc4 {[%clk 0:00:50]}  Qd8 {[%clk 0:00:10]} 26. a5 {[%clk 0:00:46]}  h4 {[%clk 0:00:08]} 27. Nb6 {[%clk 0:00:45]}  Ra7 {[%clk 0:00:08]} 28. Bb8 {[%clk 0:00:45]}  h3 {[%clk 0:00:03]} 29. Bxa7 {[%clk 0:00:40]}  hxg2 {[%clk 0:00:03]} 30. Kxg2 {[%clk 0:00:37]}  f4 {[%clk 0:00:02]} 31. Rh1 {[%clk 0:00:34]}  f3+ {[%clk 0:00:02]} 32. Kg1 {[%clk 0:00:34]} 1-0


[Site "https://www.chess.com"]

[Event "Titled Tuesday Blitz November 15 Early 2022"]
[White "Concio, Michael Jr."]
[Black "Potapova, Margarita"]
[WhiteFideId "5217873"]
[BlackFideId "14126869"]
[WhiteElo "2236"]
[BlackElo "2272"]
[Result "1-0"]
[Round "05"]
[TimeControl "180+1"]
[Date "2022.11.16"]
[WhiteClock "0:00:12"]
[BlackClock "0:00:18"]

1. e4 {[%clk 0:03:00]}  c5 {[%clk 0:03:00]} 2. Nf3 {[%clk 0:03:00]}  d6 {[%clk 0:03:00]} 3. d4 {[%clk 0:03:01]}  cxd4 {[%clk 0:03:01]} 4. Nxd4 {[%clk 0:03:02]}  Nf6 {[%clk 0:03:02]} 5. Nc3 {[%clk 0:03:02]}  a6 {[%clk 0:03:03]} 6. Be2 {[%clk 0:03:02]}  e5 {[%clk 0:03:03]} 7. Nb3 {[%clk 0:03:02]}  Be7 {[%clk 0:03:03]} 8. Be3 {[%clk 0:03:01]}  Be6 {[%clk 0:03:02]} 9. g4 {[%clk 0:03:01]}  Nc6 {[%clk 0:02:59]} 10. g5 {[%clk 0:02:51]}  Nd7 {[%clk 0:02:59]} 11. Qd2 {[%clk 0:02:44]}  Nb6 {[%clk 0:02:53]} 12. Nd5 {[%clk 0:02:34]}  Bxd5 {[%clk 0:02:40]} 13. exd5 {[%clk 0:02:34]}  Nd4 {[%clk 0:02:41]} 14. Nxd4 {[%clk 0:02:29]}  exd4 {[%clk 0:02:41]} 15. Qxd4 {[%clk 0:02:29]}  Nd7 {[%clk 0:02:35]} 16. Qxg7 {[%clk 0:02:15]}  Rf8 {[%clk 0:02:36]} 17. O-O-O {[%clk 0:02:10]}  Qa5 {[%clk 0:02:36]} 18. Kb1 {[%clk 0:02:09]}  O-O-O {[%clk 0:02:37]} 19. Qd4 {[%clk 0:01:35]}  Qc5 {[%clk 0:02:32]} 20. Qe4 {[%clk 0:01:28]}  Qc7 {[%clk 0:02:32]} 21. Qxh7 {[%clk 0:00:50]}  Kb8 {[%clk 0:02:31]} 22. Qe4 {[%clk 0:00:46]}  Rc8 {[%clk 0:02:24]} 23. Rd2 {[%clk 0:00:41]}  Rfe8 {[%clk 0:02:09]} 24. Qd4 {[%clk 0:00:40]}  Qc5 {[%clk 0:01:07]} 25. Qa4 {[%clk 0:00:40]}  Qc7 {[%clk 0:01:04]} 26. Bg4 {[%clk 0:00:40]}  Rcd8 {[%clk 0:00:54]} 27. Qd4 {[%clk 0:00:39]}  Qc5 {[%clk 0:00:50]} 28. Bxd7 {[%clk 0:00:30]}  Rxd7 {[%clk 0:00:45]} 29. Qxc5 {[%clk 0:00:16]}  dxc5 {[%clk 0:00:46]} 30. h4 {[%clk 0:00:17]}  Bd6 {[%clk 0:00:46]} 31. h5 {[%clk 0:00:17]}  Be5 {[%clk 0:00:46]} 32. c4 {[%clk 0:00:15]}  b5 {[%clk 0:00:46]} 33. b3 {[%clk 0:00:14]}  bxc4 {[%clk 0:00:45]} 34. bxc4 {[%clk 0:00:15]}  Rb7+ {[%clk 0:00:46]} 35. Kc2 {[%clk 0:00:16]}  Rb2+ {[%clk 0:00:40]} 36. Kd3 {[%clk 0:00:16]}  Rb7 {[%clk 0:00:40]} 37. Bxc5 {[%clk 0:00:13]}  Bf4 {[%clk 0:00:38]} 38. Be3 {[%clk 0:00:12]}  Bd6 {[%clk 0:00:37]} 39. h6 {[%clk 0:00:12]}  Be5 {[%clk 0:00:33]} 40. Re2 {[%clk 0:00:13]}  Kc8 {[%clk 0:00:18]} 41. Bd4 {[%clk 0:00:12]} 1-0


[Site "https://www.chess.com"]